fUSD/lending_fUSD_20241107
["ID","MTS","AMOUNT","RATE_DAILY","PERIOD"]
[341524837,1730961047126,-500.0,0.00031699,4]
[341524838,1730961047136,-500.0,0.00031699,4]
[341524839,1730961047145,-500.0,0.00031699,4]
[341524840,1730961047155,-551.35,0.00031699,4]
[341524841,1730961047164,-500.0,0.00031699,4]
[341524842,1730961047173,-138.60543719,0.00031699,7]
[341524843,1730961048072,-12.39456281,0.00031699,7]
[341524844,1730961048083,-500.0,0.00031699,4]
[341524845,1730961048094,-151.0,0.00031699,7]
[341524846,1730961048104,-1428.61,0.00031699,4]
[341524847,1730961048114,-500.0,0.00031699,4]
[341524848,1730961048126,-500.0,0.00031699,4]
[341524849,1730961048136,-656.76,0.00031699,4]
[341524850,1730961048147,-500.0,0.00031699,4]
[341524851,1730961048157,-500.0,0.00031699,4]
[341524852,1730961048167,-2476.26,0.00031699,4]
[341524853,1730961048177,-502.67364473,0.00031699,4]
[341524854,1730961048186,-500.0,0.00031699,4]
[341524855,1730961048196,-500.0,0.00031699,4]
[341524856,1730961048207,-1041.29,0.00031699,4]
[341524857,1730961048217,-754.03,0.00031699,4]
[341524858,1730961048227,-501.39800755,0.00031699,4]
[341524859,1730961048237,-151.0,0.000317,7]
[341524860,1730961048250,-150.0,0.000317,2]
[341524861,1730961048259,-700.0,0.000317,11]
[341524862,1730961048269,-150.0,0.00031702,2]
[341524863,1730961048279,-150.0,0.00031704,2]
[341524864,1730961048289,-150.0,0.00031707,2]
[341524865,1730961048299,-150.0,0.00031707,2]
[341524866,1730961048309,-244.65092538,0.0003171,2]
[341524867,1730961048320,-150.0,0.0003171,2]
[341524868,1730961048330,-150.0,0.00031711,2]
[341524869,1730961048339,-150.0,0.00031713,2]
[341524870,1730961048349,-150.0,0.00031714,2]
[341524871,1730961048359,-150.0,0.00031717,2]
[341524872,1730961048368,-150.0,0.0003172,2]
[341524873,1730961048377,-150.0,0.00031722,2]
[341524874,1730961048387,-150.0,0.00031722,2]
[341524875,1730961048400,-150.0,0.00031725,2]
[341524876,1730961048411,-150.0,0.00031728,2]
[341524877,1730961048421,-150.0,0.0003173,2]
[341524878,1730961048430,-150.0,0.00031732,2]
[341524879,1730961048440,-150.0,0.00031736,2]
[341524880,1730961048450,-150.0,0.00031738,2]
[341524881,1730961048459,-150.0,0.00031739,2]
[341524882,1730961048469,-150.0,0.0003174,2]
[341524883,1730961048480,-150.0,0.00031742,2]
[341524884,1730961048490,-150.0,0.00031748,2]
[341524885,1730961048504,-150.0,0.00031754,2]
[341524886,1730961048513,-241.33841465,0.00031759,2]
[341524887,1730961048522,-150.0,0.00031761,2]
[341524888,1730961048532,-415.76730335,0.00031761,10]
[341524889,1730961048541,-161.7366972,0.00031761,10]
[341524890,1730961048551,-150.0,0.00031762,2]
[341524891,1730961048560,-150.0,0.00031762,2]
[341524892,1730961048570,-150.0,0.00031763,2]
[341524893,1730961048579,-150.0,0.00031764,2]
[341524894,1730961048588,-150.0,0.00031765,2]
[341524895,1730961048598,-150.0,0.00031768,2]
[341524896,1730961048607,-1843.06,0.00031771,4]
[341524897,1730961048617,-1536.44,0.00031771,4]
[341524898,1730961048627,-778.4,0.00031771,4]
[341524899,1730961048637,-2764.11,0.00031771,4]
[341524900,1730961048646,-734.27,0.00031771,4]
[341524901,1730961048656,-4657.75,0.00031771,4]
[341524902,1730961048665,-580.06987945,0.00031771,4]
[341524903,1730961048674,-500.0,0.00031771,4]
[341524904,1730961048684,-500.0,0.00031771,4]
[341524905,1730961048693,-2300.46,0.00031771,4]
[341524906,1730961048703,-565.40513704,0.00031771,4]
[341524907,1730961048713,-500.0,0.00031771,4]
[341524908,1730961048722,-759.92,0.00031771,4]
[341524909,1730961048731,-588.8,0.00031771,4]
[341524910,1730961048741,-500.0,0.00031771,4]
[341524911,1730961048753,-598.5,0.00031771,4]
[341524912,1730961048762,-500.0,0.00031771,4]
[341524913,1730961048772,-889.07,0.00031771,4]
[341524914,1730961048781,-500.0,0.00031771,4]
[341524915,1730961048790,-500.0,0.00031771,4]
[341524916,1730961048800,-1954.93,0.00031771,4]
[341524917,1730961048809,-150.0,0.00031776,2]
[341524918,1730961048819,-150.0,0.00031781,2]
[341524919,1730961048829,-510.54,0.00031781,2]
[341524920,1730961048838,-150.0,0.00031783,2]
[341524921,1730961048848,-150.0,0.00031783,2]
[341524922,1730961048858,-150.0,0.00031784,2]
[341524923,1730961048867,-150.0,0.00031785,2]
[341524924,1730961048877,-1409.7348591,0.00031787,2]
[341524925,1730961048886,-4261.349139,0.00031787,2]
[341524926,1730961048896,-150.0,0.00031787,2]
[341524927,1730961048906,-5094.3218368,0.00031787,2]
[341524928,1730961048915,-7093.5425374,0.00031787,2]
[341524929,1730961048925,-249.002412,0.00031787,7]
[341524930,1730961048934,-315.890533,0.00031787,7]
[341524931,1730961048944,-315.890533,0.00031787,7]
[341524932,1730961048953,-1910.540999,0.00031787,7]
[341524933,1730961048962,-1910.540999,0.00031787,7]
[341524934,1730961048971,-151.0,0.00031787,7]
[341524935,1730961048980,-151.0,0.00031787,7]
[341524936,1730961048989,-154.85269,0.00031787,7]
[341524937,1730961049001,-150.0,0.00031789,2]
[341524938,1730961049010,-150.0,0.00031791,2]
[341524939,1730961049020,-150.0,0.00031793,2]
[341524940,1730961049029,-150.0,0.00031795,2]
[341524941,1730961049039,-150.0,0.00031795,2]
[341524942,1730961049048,-151.239118,0.00031795,7]
[341524943,1730961049058,-151.239118,0.00031795,7]
[341524944,1730961049067,-151.0,0.00031795,7]
[341524945,1730961049076,-151.0,0.00031795,7]
[341524946,1730961049086,-150.0,0.00031797,2]
[341524947,1730961049095,-500.0,0.00031799,4]
[341524948,1730961049104,-500.0,0.00031799,4]
[341524949,1730961049113,-1798.66,0.00031799,4]
[341524950,1730961049122,-616.56,0.00031799,4]
[341524951,1730961049132,-1736.99,0.00031799,4]
[341524952,1730961049141,-1565.03,0.00031799,4]
[341524953,1730961049150,-500.0,0.00031799,4]
[341524954,1730961049160,-596.19,0.00031799,4]
[341524955,1730961049171,-1179.75,0.00031799,4]
[341524956,1730961049180,-500.0,0.00031799,4]
[341524957,1730961049190,-1201.3,0.00031799,4]
[341524958,1730961049200,-1267.37,0.00031799,4]
[341524959,1730961049209,-500.0,0.00031799,4]
[341524960,1730961049218,-765.72,0.00031799,4]
[341524961,1730961049227,-1186.51,0.00031799,4]
[341524962,1730961049237,-581.31,0.00031799,4]
[341524963,1730961049247,-150.0,0.00031799,2]
[341524964,1730961049256,-500.0,0.00031799,4]
[341524965,1730961049266,-1924.65,0.00031799,4]
[341524966,1730961049275,-2038.78,0.00031799,4]
[341524967,1730961049284,-500.0,0.00031799,4]
[341524968,1730961049294,-500.0,0.00031799,4]
[341524969,1730961049303,-500.0,0.00031799,4]
[341524970,1730961049313,-2484.08,0.00031799,4]
[341524971,1730961049325,-500.0,0.00031799,4]
[341524972,1730961049335,-2014.76,0.00031799,4]
[341524973,1730961049345,-1107.13,0.00031799,4]
[341524974,1730961049354,-1543.02,0.00031799,4]
[341524975,1730961049365,-500.0,0.00031799,4]
[341524976,1730961049375,-500.0,0.00031799,4]
[341524977,1730961049384,-2284.77,0.00031799,4]
[341524978,1730961049395,-500.0,0.00031799,4]
[341524979,1730961049405,-523.25,0.00031799,4]
[341524980,1730961049415,-500.0,0.00031799,4]
[341524981,1730961049424,-500.0,0.00031799,4]
[341524982,1730961049434,-1170.35,0.00031799,4]
[341524983,1730961049443,-1170.35,0.00031799,4]
[341524984,1730961049452,-812.78,0.00031799,4]
[341524985,1730961049462,-784.79,0.00031799,4]
[341524986,1730961049471,-500.30004792,0.00031799,4]
[341524987,1730961049481,-1284.84,0.00031799,4]
[341524988,1730961049491,-1108.97,0.00031799,4]
[341524989,1730961049503,-998.86,0.00031799,4]
[341524990,1730961049512,-730.27,0.00031799,4]
[341524991,1730961049521,-1614.42,0.00031799,4]
[341524992,1730961049530,-500.0,0.00031799,2]
[341524993,1730961049540,-500.0,0.00031799,4]
[341524994,1730961049549,-500.0,0.00031799,4]
[341524995,1730961049558,-151.0,0.00031799,7]
[341524996,1730961049567,-500.0,0.00031799,4]
[341524997,1730961049576,-151.0,0.00031799,7]
[341524998,1730961049585,-151.0,0.00031799,7]
[341524999,1730961049595,-151.0,0.00031799,7]
[341525000,1730961049604,-724.312942,0.00031799,7]
[341525001,1730961049614,-154.034037,0.00031799,7]
[341525002,1730961049623,-154.034037,0.00031799,7]
[341525003,1730961049633,-166.462487,0.00031799,7]
[341525004,1730961049643,-166.462487,0.00031799,7]
[341525005,1730961049653,-500.0,0.00031799,4]
[341525006,1730961049662,-151.0,0.00031799,7]
[341525007,1730961049671,-151.0,0.00031799,7]
[341525008,1730961049680,-151.0,0.00031799,7]
[341525009,1730961049690,-151.0,0.00031799,7]
[341525010,1730961049699,-151.0,0.00031799,7]
[341525011,1730961049709,-500.0,0.00031799,4]
[341525012,1730961049719,-151.0,0.00031799,7]
[341525013,1730961049729,-151.0,0.00031799,7]
[341525014,1730961049738,-4395.07,0.00031799,4]
[341525015,1730961049749,-151.0,0.00031799,7]
[341525016,1730961049758,-151.0,0.000318,7]
[341525017,1730961049768,-398.0,0.000318,16]
[341525018,1730961049778,-151.0,0.000318,7]
[341525019,1730961049788,-151.0,0.000318,7]
[341525020,1730961049797,-196.0,0.000318,16]
[341525021,1730961049807,-151.0,0.000318,7]
[341525022,1730961049816,-151.0,0.000318,7]
[341525023,1730961049826,-2000.0,0.000318,2]
[341525024,1730961049836,-200.0,0.000318,2]
[341525025,1730961049846,-151.0,0.000318,7]
[341525026,1730961049857,-151.0,0.000318,7]
[341525027,1730961049867,-151.0,0.000318,7]
[341525028,1730961049876,-151.0,0.000318,7]
[341525029,1730961049886,-227.456826,0.000318,7]
[341525030,1730961049895,-151.0,0.000318,7]
[341525031,1730961049904,-151.0,0.000318,7]
[341525032,1730961049914,-1324.187502,0.000318,9]
[341525033,1730961049923,-151.0,0.000318,7]
[341525034,1730961049932,-163.288348,0.000318,7]
[341525035,1730961049942,-163.288348,0.000318,7]
[341525036,1730961049952,-151.0,0.000318,7]
[341525037,1730961049962,-151.0,0.000318,7]
[341525038,1730961049971,-151.0,0.000318,7]
[341525039,1730961049981,-200.0,0.000318,2]
[341525040,1730961049990,-501.745759,0.000318,7]
[341525041,1730961050000,-1000.0,0.000318,11]
[341525042,1730961050010,-151.0,0.000318,7]
[341525043,1730961050019,-151.0,0.000318,7]
[341525044,1730961050028,-160.022439,0.000318,7]
[341525045,1730961050037,-469.866004,0.000318,7]
[341525046,1730961050047,-469.866004,0.000318,7]
[341525047,1730961050057,-379.779028,0.000318,7]
[341525048,1730961050066,-379.779028,0.000318,7]
[341525049,1730961050076,-166.87115,0.000318,7]
[341525050,1730961050086,-166.87115,0.000318,7]
[341525051,1730961050095,-250000.0,0.000318,2]
[341525052,1730961050104,-150.0,0.00031802,2]
[341525053,1730961050114,-150.0,0.00031809,2]
[341525054,1730961050123,-150.0,0.0003181,2]
[341525055,1730961050133,-150.0,0.00031825,2]
[341525056,1730961050143,-150.0,0.00031834,2]
[341525057,1730961050152,-8010.25253069,0.00031837,15]
[341525058,1730961050161,-150.0,0.00031839,2]
[341525059,1730961050173,-150.0,0.00031843,2]
[341525060,1730961050183,-150.0,0.00031844,2]
[341525061,1730961050192,-150.0,0.00031845,2]
[341525062,1730961050201,-150.0,0.00031846,2]
[341525063,1730961050211,-2966.12957039,0.00031847,9]
[341525064,1730961050220,-150.0,0.00031847,2]
[341525065,1730961050228,-315.890533,0.00031847,7]
[341525066,1730961050239,-315.890533,0.00031847,7]
[341525067,1730961050248,-1910.540999,0.00031847,7]
[341525068,1730961050257,-1910.540999,0.00031847,7]
[341525069,1730961050266,-151.0,0.00031847,7]
[341525070,1730961050276,-151.0,0.00031847,7]
[341525071,1730961050286,-150.110715,0.00031848,2]
[341525072,1730961050295,-150.0,0.00031849,2]
[341525073,1730961050303,-150.0,0.00031851,2]
[341525074,1730961050313,-150.0,0.00031854,2]
[341525075,1730961050326,-150.0,0.00031855,2]
[341525076,1730961050335,-150.0,0.00031856,2]
[341525077,1730961050344,-150.0,0.00031859,2]
[341525078,1730961050354,-1030.392931,0.0003186,12]
[341525079,1730961050363,-150.0,0.00031862,2]
[341525080,1730961050372,-150.0,0.00031862,2]
[341525081,1730961050382,-150.0,0.00031866,2]
[341525082,1730961050393,-150.0,0.00031868,2]
[341525083,1730961050402,-150.0,0.00031869,2]
[341525084,1730961050411,-535.84,0.00031871,4]
[341525085,1730961050420,-1652.58,0.00031871,4]
[341525086,1730961050430,-3222.5,0.00031871,4]
[341525087,1730961050440,-761.9,0.00031871,4]
[341525088,1730961050449,-1280.16,0.00031871,4]
[341525089,1730961050458,-3972.2,0.00031871,4]
[341525090,1730961050468,-1871.91,0.00031871,4]
[341525091,1730961050477,-500.0,0.00031871,4]
[341525092,1730961050487,-1253.68,0.00031871,4]
[341525093,1730961050496,-623.53,0.00031871,4]
[341525094,1730961050507,-834.19,0.00031871,4]
[341525095,1730961050516,-1497.88,0.00031871,4]
[341525096,1730961050526,-890.29,0.00031871,4]
[341525097,1730961050535,-500.0,0.00031871,4]
[341525098,1730961050544,-570.61,0.00031872,4]
[341525099,1730961050553,-500.0,0.00031872,4]
[341525100,1730961050563,-2910.04421854,0.00031872,4]
[341525101,1730961050600,-627.62005624,0.00031598,4]
[341525102,1730961050629,-332.3222,0.00031598,4]
[341525103,1730961050641,-2149.24774376,0.00031598,4]
[341525104,1730961050651,-1510.42578146,0.00031872,4]
[341525105,1730961050660,-2556.59,0.00031872,4]
[341525106,1730961050669,-151.0,0.00031872,7]
[341525107,1730961050679,-270.748946,0.00031872,7]
[341525108,1730961050688,-500.0,0.00031872,4]
[341525109,1730961050697,-151.0,0.00031872,7]
[341525110,1730961050706,-500.0,0.00031872,4]
[341525111,1730961050716,-686.57,0.00031872,4]
[341525112,1730961050725,-490.483093,0.00031872,4]
[341525113,1730961050734,-716.43,0.00031872,4]
[341525114,1730961050743,-744.89,0.00031872,4]
[341525115,1730961050757,-12992.06,0.00031872,4]
[341525116,1730961050767,-953.15,0.00031872,4]
[341525117,1730961050776,-500.0,0.00031872,4]
[341525118,1730961050785,-305.034082,0.00031872,4]
[341525119,1730961050794,-2501.71,0.00031872,4]
[341525120,1730961050805,-1992.28,0.00031872,4]
[341525121,1730961050814,-9233.39,0.00031872,4]
[341525122,1730961050823,-1256.1,0.00031872,4]
[341525123,1730961050832,-1525.28,0.00031872,4]
[341525124,1730961050842,-3369.6,0.00031872,4]
[341525125,1730961050851,-1354.52,0.00031872,4]
[341525126,1730961050860,-607.76,0.00031872,4]
[341525127,1730961050870,-684.49,0.00031872,4]
[341525128,1730961050880,-2296.07,0.00031872,4]
[341525129,1730961050890,-1681.89,0.00031872,4]
[341525130,1730961050899,-500.0,0.00031872,4]
[341525131,1730961050908,-1507.57,0.00031872,4]
[341525132,1730961050918,-5856.94394842,0.00031872,4]
[341525133,1730961052996,-1411.5,0.00031699,4]
[341525134,1730961053008,-917.3,0.00031699,4]
[341525135,1730961053018,-546.48605158,0.00031872,4]
[341525136,1730961053027,-2353.07,0.00031872,4]
[341525137,1730961053036,-917.29,0.00031872,4]
[341525138,1730961053045,-1421.63,0.00031872,4]
[341525139,1730961053054,-151.0,0.00031872,7]
[341525140,1730961053063,-829.37,0.00031872,4]
[341525141,1730961053072,-929.12,0.00031872,4]
[341525142,1730961053082,-1552.98,0.00031872,4]
[341525143,1730961053091,-1793.26,0.00031872,4]
[341525144,1730961053100,-3109.19,0.00031872,4]
[341525145,1730961053110,-500.0,0.00031873,5]
[341525146,1730961053119,-500.0,0.00031873,5]
[341525147,1730961053128,-500.0,0.00031873,5]
[341525148,1730961053138,-500.0,0.00031873,5]
[341525149,1730961053147,-500.0,0.00031873,4]
[341525150,1730961053158,-557.79105939,0.00031873,4]
[341525151,1730961053169,-360.26376472,0.00031873,4]
[341525152,1730961053179,-500.0,0.00031873,4]
[341525153,1730961053189,-1062.64,0.00031873,4]
[341525154,1730961053198,-439.28282615,0.00031873,4]
[341525155,1730961053207,-2261.27,0.00031873,4]
[341525156,1730961053216,-500.0,0.00031873,4]
[341525157,1730961053226,-500.0,0.00031873,4]
[341525158,1730961053235,-500.0,0.00031873,4]
[341525159,1730961053245,-500.0,0.00031873,4]
[341525160,1730961053255,-500.0,0.00031873,4]
[341525161,1730961053264,-500.0,0.00031873,4]
[341525162,1730961053274,-500.0,0.00031873,4]
[341525163,1730961053283,-500.0,0.00031873,4]
[341525164,1730961053292,-500.0,0.00031873,4]
[341525165,1730961053301,-789.68,0.00031873,4]
[341525166,1730961053311,-500.0,0.00031873,4]
[341525167,1730961053321,-500.0,0.00031873,4]
[341525168,1730961053332,-873.49,0.00031873,4]
[341525169,1730961053342,-778.93,0.00031873,4]
[341525170,1730961053350,-638.63,0.00031873,4]
[341525171,1730961053359,-754.67,0.00031873,4]
[341525172,1730961053370,-1022.26,0.00031873,4]
[341525173,1730961053380,-500.0,0.00031873,4]
[341525174,1730961053389,-500.0,0.00031873,4]
[341525175,1730961053399,-500.0,0.00031873,4]
[341525176,1730961053408,-783.28,0.00031873,4]
[341525177,1730961053417,-500.0,0.00031873,4]
[341525178,1730961053426,-500.0,0.00031873,4]
[341525179,1730961053435,-500.0,0.00031873,4]
[341525180,1730961053445,-785.25,0.00031873,4]
[341525181,1730961053454,-500.0,0.00031873,4]
[341525182,1730961053464,-1035.01,0.00031873,4]
[341525183,1730961053473,-789.56,0.00031873,4]
[341525184,1730961053483,-314.69417679,0.00031873,4]
[341525185,1730961053492,-500.0,0.00031873,4]
[341525186,1730961053503,-500.0,0.00031873,4]
[341525187,1730961053513,-500.0,0.00031873,4]
[341525188,1730961053522,-4581.84909589,0.00031873,2]
[341525189,1730961053532,-500.0,0.00031873,4]
[341525190,1730961053541,-997.76,0.00031873,4]
[341525191,1730961053551,-1292.97,0.00031873,4]
[341525192,1730961053560,-664.75,0.00031873,4]
[341525193,1730961053569,-1262.28,0.00031873,4]
[341525194,1730961053579,-500.0,0.00031873,4]
[341525195,1730961053588,-150.0,0.00031873,2]
[341525196,1730961053598,-500.0,0.00031873,4]
[341525197,1730961053607,-500.0,0.00031873,4]
[341525198,1730961053618,-500.0,0.00031873,4]
[341525199,1730961053627,-500.0,0.00031873,4]
[341525200,1730961053636,-500.0,0.00031873,4]
[341525201,1730961053646,-500.0,0.00031873,4]
[341525202,1730961053656,-190.85556473,0.00031873,4]
[341525203,1730961053666,-1793.51,0.00031873,4]
[341525204,1730961053676,-500.0,0.00031873,4]
[341525205,1730961053685,-575.61,0.00031873,4]
[341525206,1730961053694,-500.0,0.00031873,4]
[341525207,1730961053703,-283.52079888,0.00031873,4]
[341525208,1730961053713,-500.0,0.00031873,4]
[341525209,1730961053722,-500.0,0.00031873,4]
[341525210,1730961053731,-500.0,0.00031873,4]
[341525211,1730961053740,-928.68,0.00031873,4]
[341525212,1730961053749,-801.38,0.00031873,4]
[341525213,1730961053760,-500.0,0.00031873,4]
[341525214,1730961053770,-500.0,0.00031873,4]
[341525215,1730961053779,-500.0,0.00031873,4]
[341525216,1730961053789,-647.28,0.00031873,4]
[341525217,1730961053799,-986.36,0.00031873,4]
[341525218,1730961053809,-500.0,0.00031873,4]
[341525219,1730961053818,-500.0,0.00031873,4]
[341525220,1730961053828,-500.0,0.00031873,4]
[341525221,1730961053837,-500.0,0.00031873,4]
[341525222,1730961053846,-636.24,0.00031873,4]
[341525223,1730961053855,-501.93608811,0.00031873,4]
[341525224,1730961053864,-500.0,0.00031873,4]
[341525225,1730961053873,-500.0,0.00031873,4]
[341525226,1730961053883,-720.15,0.00031873,4]
[341525227,1730961053892,-402.59377524,0.00031873,4]
[341525228,1730961053901,-500.0,0.00031873,4]
[341525229,1730961053910,-500.0,0.00031873,4]
[341525230,1730961053920,-511.47,0.00031873,4]
[341525231,1730961053929,-500.0,0.00031873,4]
[341525232,1730961053938,-521.531568,0.00031873,4]
[341525233,1730961053948,-500.0,0.00031873,4]
[341525234,1730961053957,-509.20435678,0.00031873,4]
[341525235,1730961053966,-500.0,0.00031873,4]
[341525236,1730961053975,-500.0,0.00031873,4]
[341525237,1730961053984,-510.41471985,0.00031873,4]
[341525238,1730961053993,-499.69651404,0.00031873,4]
[341525239,1730961054003,-500.0,0.00031873,4]
[341525240,1730961054011,-500.0,0.00031873,4]
[341525241,1730961054021,-500.0,0.00031873,4]
[341525242,1730961054030,-81.87116591,0.00031873,4]
[341525243,1730961054046,-415.57967865,0.00031873,4]
[341525244,1730961054055,-500.0,0.00031873,4]
[341525245,1730961054064,-502.1311784,0.00031873,4]
[341525246,1730961054073,-865.59,0.00031873,4]
[341525247,1730961054083,-500.0,0.00031873,4]
[341525248,1730961054092,-298.3055553,0.00031873,4]
[341525249,1730961054101,-664.99,0.00031873,4]
[341525250,1730961054110,-500.0,0.00031873,4]
[341525251,1730961054119,-500.0,0.00031873,4]
[341525252,1730961054129,-500.0,0.00031873,4]
[341525253,1730961054141,-503.70912157,0.00031873,4]
[341525254,1730961054151,-1144.25,0.00031873,4]
[341525255,1730961054160,-564.02976558,0.00031873,4]
[341525256,1730961054370,-600.20680926,0.00031873,4]
[341525257,1730961054387,-500.0,0.00031873,4]
[341525258,1730961054398,-151.239118,0.00031873,7]
[341525259,1730961054407,-500.0,0.00031873,4]
[341525260,1730961054416,-455.7129484,0.00031873,4]
[341525261,1730961054425,-500.0,0.00031873,4]
[341525262,1730961054434,-500.0,0.00031873,4]
[341525263,1730961054443,-151.239118,0.00031873,7]
[341525264,1730961054452,-500.0,0.00031873,4]
[341525265,1730961054461,-500.0,0.00031873,4]
[341525266,1730961054470,-399.96503181,0.00031873,4]
[341525267,1730961054490,-100.03496819,0.00031873,4]
[341525268,1730961054499,-500.0,0.00031873,4]
[341525269,1730961054509,-357.17081517,0.00031873,4]
[341525270,1730961054520,-142.82918483,0.00031873,4]
[341525271,1730961054529,-500.0,0.00031873,4]
[341525272,1730961054539,-500.0,0.00031873,4]
[341525273,1730961054548,-500.0,0.00031873,4]
[341525274,1730961054557,-500.0,0.00031873,4]
[341525275,1730961054566,-281.846798,0.00031873,7]
[341525276,1730961054575,-500.0,0.00031873,4]
[341525277,1730961054585,-500.0,0.00031873,4]
[341525278,1730961054600,-500.0,0.00031873,4]
[341525279,1730961054613,-500.0,0.00031873,4]
[341525280,1730961054623,-500.0,0.00031873,4]
[341525281,1730961054633,-500.0,0.00031873,4]
[341525282,1730961054642,-500.0,0.00031873,4]
[341525283,1730961054652,-500.0,0.00031873,4]
[341525284,1730961054661,-500.0,0.00031873,4]
[341525285,1730961054671,-500.0,0.00031873,4]
[341525286,1730961054681,-658.49,0.00031873,4]
[341525287,1730961054690,-500.0,0.00031873,4]
[341525288,1730961054700,-500.0,0.00031873,4]
[341525289,1730961054709,-500.0,0.00031873,4]
[341525290,1730961054719,-500.0,0.00031873,4]
[341525291,1730961054728,-500.0,0.00031873,4]
[341525292,1730961054737,-523.68,0.00031873,4]
[341525293,1730961054747,-500.0,0.00031873,4]
[341525294,1730961054757,-151.0,0.00031873,7]
[341525295,1730961054766,-500.0,0.00031873,4]
[341525296,1730961054776,-1072.83,0.00031873,4]
[341525297,1730961054786,-500.0,0.00031873,4]
[341525298,1730961054795,-500.0,0.00031873,4]
[341525299,1730961054804,-357.60801214,0.00031873,4]
[341525300,1730961054815,-151.0,0.00031873,7]
[341525301,1730961054824,-676.42,0.00031873,4]
[341525302,1730961054833,-500.0,0.00031873,4]
[341525303,1730961054843,-500.0,0.00031873,4]
[341525304,1730961054852,-500.0,0.00031873,4]
[341525305,1730961054862,-500.0,0.00031873,4]
[341525306,1730961054871,-511.34291391,0.00031873,4]
[341525307,1730961054882,-1023.87,0.00031873,4]
[341525308,1730961054892,-504.42,0.00031873,4]
[341525309,1730961054902,-500.0,0.00031873,4]
[341525310,1730961054912,-500.18,0.00031873,4]
[341525311,1730961054922,-503.60404443,0.00031873,4]
[341525312,1730961054933,-151.0,0.00031873,7]
[341525313,1730961054942,-151.0,0.00031873,7]
[341525314,1730961054952,-500.0,0.00031873,4]
[341525315,1730961054962,-500.0,0.00031873,4]
[341525316,1730961054971,-1499.29,0.00031873,4]
[341525317,1730961054980,-500.0,0.00031873,4]
[341525318,1730961054989,-500.0,0.00031873,4]
[341525319,1730961054999,-163.288348,0.00031873,7]
[341525320,1730961055009,-1699.2,0.00031873,4]
[341525321,1730961055018,-163.288348,0.00031873,7]
[341525322,1730961055027,-714.414222,0.00031873,7]
[341525323,1730961055037,-1035.15,0.00031873,4]
[341525324,1730961055046,-500.0,0.00031873,4]
[341525325,1730961055055,-163.288348,0.00031873,7]
[341525326,1730961055066,-163.288348,0.00031873,7]
[341525327,1730961055076,-500.0,0.00031873,4]
[341525328,1730961055085,-39.78343269,0.00031873,4]
[341525329,1730961055140,-460.21656731,0.00031873,4]
[341525330,1730961055150,-500.0,0.00031873,4]
[341525331,1730961055159,-806.26,0.00031873,4]
[341525332,1730961055169,-500.0,0.00031873,4]
[341525333,1730961055179,-256.342232,0.00031873,7]
[341525334,1730961055188,-1436.73,0.00031873,4]
[341525335,1730961055197,-500.0,0.00031873,4]
[341525336,1730961055206,-500.0,0.00031873,4]